[Event "*** Titled Tuesday Blitz"]
[Site "Chess.com"]
[Date "2018.07.03"]
[Round "5"]
[White "Keures"]
[Black "Drags95"]
[Result "0-1"]
[WhiteElo "2137"]
[BlackElo "2600"]
[TimeControl "180+2"]
[EndTime "13:59:44 PDT"]
[Termination "Drags95 won by resignation"]

1. d4 {[%clk 0:03:01.9]} 1... Nf6 {[%clk 0:02:58.9]} 2. c4 {[%clk 0:03:02.2]}
2... e6 {[%clk 0:02:51.7]} 3. Nc3 {[%clk 0:03:02]} 3... Bb4 {[%clk 0:02:47.3]}
4. Qc2 {[%clk 0:03:02.7]} 4... O-O {[%clk 0:02:42]} 5. a3 {[%clk 0:03:02.8]}
5... Bxc3+ {[%clk 0:02:42.4]} 6. Qxc3 {[%clk 0:03:04.7]} 6... d6 {[%clk
0:02:44.2]} 7. Bg5 {[%clk 0:02:47.4]} 7... Nbd7 {[%clk 0:02:43.3]} 8. Nh3 {[%clk
0:02:45.6]} 8... e5 {[%clk 0:02:42.2]} 9. dxe5 {[%clk 0:02:44.4]} 9... dxe5
{[%clk 0:02:44.1]} 10. f3 {[%clk 0:02:44.1]} 10... e4 {[%clk 0:02:42.5]} 11. Nf2
{[%clk 0:02:39.7]} 11... Re8 {[%clk 0:02:40.1]} 12. O-O-O {[%clk 0:02:23.6]}
12... Qe7 {[%clk 0:02:34.2]} 13. fxe4 {[%clk 0:01:55.8]} 13... h6 {[%clk
0:02:34.7]} 14. Bxf6 {[%clk 0:01:51.3]} 14... Nxf6 {[%clk 0:02:36.6]} 15. g3
{[%clk 0:01:44.1]} 15... Nxe4 {[%clk 0:02:35.4]} 16. Nxe4 {[%clk 0:01:45.1]}
16... Qxe4 {[%clk 0:02:37.3]} 17. Rg1 {[%clk 0:01:39.2]} 17... Bf5 {[%clk
0:02:38.9]} 18. Rd3 {[%clk 0:01:14.6]} 18... Rad8 {[%clk 0:02:37.4]} 19. Rxd8
{[%clk 0:00:34.2]} 19... Rxd8 {[%clk 0:02:33.9]} 0-1

[Event "*** Titled Tuesday Blitz"]
[Site "Chess.com"]
[Date "2018.07.03"]
[Round "5"]
[White "matiss90"]
[Black "EndgameGrinder"]
[Result "0-1"]
[WhiteElo "2344"]
[BlackElo "2455"]
[TimeControl "180+2"]
[EndTime "13:59:52 PDT"]
[Termination "EndgameGrinder won by resignation"]

1. e4 {[%clk 0:03:01.9]} 1... c5 {[%clk 0:03:00.7]} 2. Nf3 {[%clk 0:03:02.7]}
2... e6 {[%clk 0:03:02.2]} 3. d4 {[%clk 0:03:03.7]} 3... cxd4 {[%clk 0:03:03.8]}
4. Nxd4 {[%clk 0:03:05.6]} 4... Nc6 {[%clk 0:03:05.3]} 5. Nc3 {[%clk 0:03:06.9]}
5... Qc7 {[%clk 0:03:06.8]} 6. Be2 {[%clk 0:03:05.1]} 6... a6 {[%clk 0:03:07.6]}
7. O-O {[%clk 0:03:02.1]} 7... Nf6 {[%clk 0:03:09.1]} 8. Be3 {[%clk 0:02:59.9]}
8... Bb4 {[%clk 0:03:09.5]} 9. Bd3 {[%clk 0:02:55.6]} 9... b5 {[%clk 0:03:02]}
10. Nxc6 {[%clk 0:02:29.7]} 10... dxc6 {[%clk 0:03:01.7]} 11. f4 {[%clk
0:02:30.6]} 11... e5 {[%clk 0:03:01.7]} 12. fxe5 {[%clk 0:02:29.7]} 12... Ng4
{[%clk 0:03:01.5]} 13. Bf4 {[%clk 0:02:23.5]} 13... Nxe5 {[%clk 0:02:58.9]} 14.
Kh1 {[%clk 0:02:20.8]} 14... O-O {[%clk 0:02:55.4]} 15. Qh5 {[%clk 0:02:21.4]}
15... Bd6 {[%clk 0:02:52.2]} 16. h3 {[%clk 0:02:00.8]} 16... Be6 {[%clk
0:02:34.5]} 17. Rad1 {[%clk 0:01:35.8]} 17... Rad8 {[%clk 0:02:29.7]} 18. Rf2
{[%clk 0:01:19.7]} 18... Nxd3 {[%clk 0:02:26.2]} 19. cxd3 {[%clk 0:01:09.9]}
19... Bxf4 {[%clk 0:02:26.1]} 20. d4 {[%clk 0:01:11.1]} 20... Be3 {[%clk
0:01:54.5]} 0-1

[Event "*** Titled Tuesday Blitz"]
[Site "Chess.com"]
[Date "2018.07.03"]
[Round "5"]
[White "Sven_Tica"]
[Black "VerdeNotte"]
[Result "0-1"]
[WhiteElo "2647"]
[BlackElo "2603"]
[TimeControl "180+2"]
[EndTime "14:00:53 PDT"]
[Termination "VerdeNotte won by resignation"]

1. Nf3 {[%clk 0:03:01.9]} 1... Nf6 {[%clk 0:02:58.8]} 2. g3 {[%clk 0:03:03.3]}
2... g6 {[%clk 0:02:59.7]} 3. Bg2 {[%clk 0:03:04.9]} 3... Bg7 {[%clk 0:03:00.9]}
4. O-O {[%clk 0:03:06.6]} 4... O-O {[%clk 0:03:02.5]} 5. d4 {[%clk 0:03:08.3]}
5... d6 {[%clk 0:02:59.6]} 6. b3 {[%clk 0:03:09.5]} 6... c5 {[%clk 0:02:58]} 7.
Bb2 {[%clk 0:03:10.4]} 7... cxd4 {[%clk 0:02:57.2]} 8. Nxd4 {[%clk 0:03:10.8]}
8... d5 {[%clk 0:02:58.5]} 9. c4 {[%clk 0:03:07.3]} 9... dxc4 {[%clk 0:02:52.4]}
10. bxc4 {[%clk 0:03:09.2]} 10... Qb6 {[%clk 0:02:52.7]} 11. Nb3 {[%clk
0:03:09.8]} 11... Na6 {[%clk 0:02:52.3]} 12. Nc3 {[%clk 0:03:09.5]} 12... Be6
{[%clk 0:02:49.8]} 13. Nd5 {[%clk 0:03:05.6]} 13... Nxd5 {[%clk 0:02:46.8]} 14.
Bxg7 {[%clk 0:03:02]} 14... Ne3 {[%clk 0:02:45.1]} 15. Bd4 {[%clk 0:03:01.9]}
15... Nxd1 {[%clk 0:02:43.3]} 16. Bxb6 {[%clk 0:03:02.8]} 16... axb6 {[%clk
0:02:27.4]} 17. Rfxd1 {[%clk 0:03:00.8]} 17... Bxc4 {[%clk 0:02:24]} 18. Bxb7
{[%clk 0:03:01.5]} 18... Ra7 {[%clk 0:02:24.6]} 19. Bf3 {[%clk 0:03:02.2]} 19...
Nb4 {[%clk 0:02:18.9]} 20. Rd4 {[%clk 0:03:03.2]} 20... b5 {[%clk 0:02:12.7]}
21. Nd2 {[%clk 0:03:04.3]} 21... Nc2 {[%clk 0:02:11.7]} 22. Rxc4 {[%clk
0:03:03.4]} 22... Nxa1 {[%clk 0:01:59.1]} 23. Rb4 {[%clk 0:03:00.4]} 23... Rxa2
{[%clk 0:01:59]} 24. Ne4 {[%clk 0:03:01.5]} 24... Nc2 {[%clk 0:01:43.8]} 25.
Rxb5 {[%clk 0:03:02.8]} 25... Nd4 {[%clk 0:01:44.5]} 26. Rb7 {[%clk 0:03:01.2]}
26... Nxe2+ {[%clk 0:01:31.2]} 27. Bxe2 {[%clk 0:03:02.1]} 27... Rxe2 {[%clk
0:01:31.6]} 28. Rxe7 {[%clk 0:03:03.7]} 28... Re1+ {[%clk 0:01:24.2]} 29. Kg2
{[%clk 0:03:04.7]} 29... Kh8 {[%clk 0:01:21.1]} 30. f3 {[%clk 0:03:04]} 30...
Re2+ {[%clk 0:01:16]} 31. Kg1 {[%clk 0:03:00.4]} 31... Ra8 {[%clk 0:01:09]} 32.
Kf1 {[%clk 0:02:59.9]} 32... Rxh2 {[%clk 0:01:01]} 33. Nf2 {[%clk 0:02:57.8]}
33... Ra1+ {[%clk 0:00:57.7]} 34. Re1 {[%clk 0:02:55.6]} 34... Rxe1+ {[%clk
0:00:58]} 35. Kxe1 {[%clk 0:02:57.5]} 35... Kg7 {[%clk 0:00:57.9]} 36. Kf1
{[%clk 0:02:57.1]} 36... Rh5 {[%clk 0:00:56.9]} 37. Kg2 {[%clk 0:02:57.5]} 37...
Ra5 {[%clk 0:00:56.9]} 38. Kh3 {[%clk 0:02:58.8]} 38... h5 {[%clk 0:00:57.4]}
39. Ne4 {[%clk 0:02:58.2]} 39... g5 {[%clk 0:00:55.7]} 40. f4 {[%clk 0:02:58]}
40... gxf4 {[%clk 0:00:50.5]} 41. gxf4 {[%clk 0:02:59.6]} 41... Kg6 {[%clk
0:00:49.1]} 42. Ng3 {[%clk 0:02:58.9]} 42... Ra4 {[%clk 0:00:49.7]} 43. f5+
{[%clk 0:02:59.4]} 43... Kg5 {[%clk 0:00:50.6]} 44. f6 {[%clk 0:03:00.5]} 44...
Ra3 {[%clk 0:00:51.7]} 0-1

[Event "*** Titled Tuesday Blitz"]
[Site "Chess.com"]
[Date "2018.07.03"]
[Round "5"]
[White "1b31-0"]
[Black "Arman_Hakemi"]
[Result "0-1"]
[WhiteElo "2196"]
[BlackElo "2294"]
[TimeControl "180+2"]
[EndTime "14:01:01 PDT"]
[Termination "Arman_Hakemi won by resignation"]

1. b3 {[%clk 0:03:01.9]} 1... e5 {[%clk 0:02:59.8]} 2. Bb2 {[%clk 0:03:02.6]}
2... Nc6 {[%clk 0:03:01.2]} 3. e3 {[%clk 0:03:03.7]} 3... Nf6 {[%clk 0:03:01.3]}
4. Bb5 {[%clk 0:03:04.5]} 4... Bd6 {[%clk 0:03:02.5]} 5. Na3 {[%clk 0:03:04.3]}
5... Na5 {[%clk 0:03:03.9]} 6. Be2 {[%clk 0:03:00.6]} 6... a6 {[%clk 0:03:05.1]}
7. c4 {[%clk 0:03:01.2]} 7... O-O {[%clk 0:03:02.1]} 8. Nc2 {[%clk 0:03:00.6]}
8... Re8 {[%clk 0:03:01.9]} 9. Nf3 {[%clk 0:03:00.5]} 9... c5 {[%clk 0:02:59.6]}
10. d4 {[%clk 0:02:52.6]} 10... cxd4 {[%clk 0:02:59]} 11. exd4 {[%clk
0:02:52.8]} 11... e4 {[%clk 0:03:00.5]} 12. Nd2 {[%clk 0:02:48.9]} 12... Nc6
{[%clk 0:03:01.3]} 13. O-O {[%clk 0:02:45.3]} 13... Bb8 {[%clk 0:02:59.6]} 14.
Re1 {[%clk 0:02:44.2]} 14... d5 {[%clk 0:03:00.5]} 15. Nf1 {[%clk 0:02:39]}
15... Be6 {[%clk 0:02:56.7]} 16. Nfe3 {[%clk 0:02:28.5]} 16... Qd7 {[%clk
0:02:57.8]} 17. Rc1 {[%clk 0:02:17.1]} 17... Bf4 {[%clk 0:02:58.4]} 18. g3
{[%clk 0:02:15.3]} 18... Bc7 {[%clk 0:02:57.2]} 19. Bf1 {[%clk 0:02:15.4]} 19...
Rad8 {[%clk 0:02:58]} 20. Bg2 {[%clk 0:02:13.8]} 20... h5 {[%clk 0:02:58.7]} 21.
c5 {[%clk 0:02:04.8]} 21... h4 {[%clk 0:02:57.8]} 22. a4 {[%clk 0:01:58]} 22...
Ng4 {[%clk 0:02:55.3]} 23. Nf1 {[%clk 0:01:31.9]} 23... hxg3 {[%clk 0:02:50.5]}
24. hxg3 {[%clk 0:01:33]} 24... f5 {[%clk 0:02:50.1]} 25. b4 {[%clk 0:01:17.8]}
25... f4 {[%clk 0:02:45.4]} 26. b5 {[%clk 0:01:18.7]} 26... Ne7 {[%clk
0:02:44.9]} 27. bxa6 {[%clk 0:01:08]} 27... bxa6 {[%clk 0:02:44.4]} 28. Nb4
{[%clk 0:01:08.2]} 28... f3 {[%clk 0:02:44.5]} 29. c6 {[%clk 0:00:59.9]} 29...
Qd6 {[%clk 0:02:39.4]} 30. Nxa6 {[%clk 0:00:44.5]} 30... fxg2 {[%clk 0:02:38.6]}
31. Ne3 {[%clk 0:00:37.9]} 31... Nxf2 {[%clk 0:02:36.5]} 32. Qe2 {[%clk
0:00:17.3]} 32... Qxg3 {[%clk 0:02:29.5]} 33. Qxf2 {[%clk 0:00:17.9]} 0-1

[Event "*** Titled Tuesday Blitz"]
[Site "Chess.com"]
[Date "2018.07.03"]
[Round "5"]
[White "krzysztofszczurek"]
[Black "canwedoit"]
[Result "1-0"]
[WhiteElo "2363"]
[BlackElo "2507"]
[TimeControl "180+2"]
[EndTime "14:01:45 PDT"]
[Termination "krzysztofszczurek won by checkmate"]

1. e4 {[%clk 0:03:01.9]} 1... c5 {[%clk 0:02:59.5]} 2. c3 {[%clk 0:03:01.9]}
2... d5 {[%clk 0:02:59.5]} 3. exd5 {[%clk 0:03:00.4]} 3... Qxd5 {[%clk
0:03:01.4]} 4. d4 {[%clk 0:03:01.3]} 4... Nf6 {[%clk 0:03:00.4]} 5. Nf3 {[%clk
0:03:01.4]} 5... Bf5 {[%clk 0:03:00.9]} 6. Nbd2 {[%clk 0:02:51.5]} 6... Nc6
{[%clk 0:02:58]} 7. Bc4 {[%clk 0:02:51.5]} 7... Qd6 {[%clk 0:02:53.8]} 8. O-O
{[%clk 0:02:37.2]} 8... e6 {[%clk 0:02:53.3]} 9. Nb3 {[%clk 0:02:32.4]} 9...
cxd4 {[%clk 0:02:47.1]} 10. Nbxd4 {[%clk 0:02:31.3]} 10... Rd8 {[%clk 0:02:34]}
11. Qb3 {[%clk 0:02:23.1]} 11... Be4 {[%clk 0:02:19.3]} 12. Bg5 {[%clk 0:02:05]}
12... Be7 {[%clk 0:02:17.2]} 13. h3 {[%clk 0:02:01.9]} 13... O-O {[%clk
0:02:12.1]} 14. Rad1 {[%clk 0:01:58.7]} 14... Na5 {[%clk 0:02:01.3]} 15. Qa4
{[%clk 0:01:49.2]} 15... Nxc4 {[%clk 0:02:01.7]} 16. Qxc4 {[%clk 0:01:50]} 16...
Qb6 {[%clk 0:02:03.2]} 17. Qe2 {[%clk 0:01:41.3]} 17... Bg6 {[%clk 0:01:57.5]}
18. Ne5 {[%clk 0:01:36.4]} 18... Rd5 {[%clk 0:01:53.8]} 19. Nxg6 {[%clk
0:01:31.3]} 19... hxg6 {[%clk 0:01:55.7]} 20. Bh4 {[%clk 0:01:29.6]} 20... Rfd8
{[%clk 0:01:52.1]} 21. Nb3 {[%clk 0:01:25]} 21... a5 {[%clk 0:01:47.3]} 22. Rxd5
{[%clk 0:01:20.8]} 22... Rxd5 {[%clk 0:01:49.2]} 23. Rd1 {[%clk 0:01:17.2]}
23... a4 {[%clk 0:01:45.5]} 24. Nd4 {[%clk 0:01:02.6]} 24... e5 {[%clk 0:01:18]}
25. Nf3 {[%clk 0:00:55.6]} 25... Rxd1+ {[%clk 0:01:10.8]} 26. Qxd1 {[%clk
0:00:56]} 26... Qxb2 {[%clk 0:01:12.2]} 27. Qxa4 {[%clk 0:00:51.2]} 27... Qxc3
{[%clk 0:01:04.7]} 28. Qa8+ {[%clk 0:00:51.4]} 28... Kh7 {[%clk 0:01:04.2]} 29.
Ng5+ {[%clk 0:00:51]} 29... Kh6 {[%clk 0:01:03.5]} 30. Qh8+ {[%clk 0:00:51.6]}
30... Nh7 {[%clk 0:01:05]} 31. Qxh7# {[%clk 0:00:52.5]} 1-0

[Event "*** Titled Tuesday Blitz"]
[Site "Chess.com"]
[Date "2018.07.03"]
[Round "5"]
[White "vovachesss"]
[Black "VladimirBelous"]
[Result "0-1"]
[WhiteElo "2430"]
[BlackElo "2662"]
[TimeControl "180+2"]
[EndTime "14:02:07 PDT"]
[Termination "VladimirBelous won by resignation"]

1. c4 {[%clk 0:03:01.9]} 1... Nf6 {[%clk 0:02:59.7]} 2. Nc3 {[%clk 0:03:01.7]}
2... g6 {[%clk 0:03:01.6]} 3. g3 {[%clk 0:03:01.5]} 3... d5 {[%clk 0:02:59.6]}
4. cxd5 {[%clk 0:03:01.9]} 4... Nxd5 {[%clk 0:03:01.5]} 5. Bg2 {[%clk
0:03:03.1]} 5... Nxc3 {[%clk 0:03:02.7]} 6. bxc3 {[%clk 0:03:04]} 6... Bg7
{[%clk 0:03:03.5]} 7. Nf3 {[%clk 0:03:05.2]} 7... O-O {[%clk 0:03:04.7]} 8. O-O
{[%clk 0:03:06.5]} 8... c6 {[%clk 0:03:05.7]} 9. d4 {[%clk 0:03:07.1]} 9... Nd7
{[%clk 0:03:04.5]} 10. e4 {[%clk 0:03:07.5]} 10... Nb6 {[%clk 0:03:05.2]} 11. e5
{[%clk 0:03:06.8]} 11... Be6 {[%clk 0:03:04.3]} 12. Nd2 {[%clk 0:03:02.9]} 12...
Bd5 {[%clk 0:03:04.1]} 13. Ne4 {[%clk 0:03:03.2]} 13... Nc4 {[%clk 0:03:01.7]}
14. Qe2 {[%clk 0:03:00.1]} 14... f6 {[%clk 0:03:00.9]} 15. f4 {[%clk 0:02:38.7]}
15... fxe5 {[%clk 0:02:58.8]} 16. fxe5 {[%clk 0:02:38.8]} 16... Rxf1+ {[%clk
0:02:58.9]} 17. Qxf1 {[%clk 0:02:40.7]} 17... Qa5 {[%clk 0:02:56.6]} 18. Bg5
{[%clk 0:02:21.2]} 18... Rf8 {[%clk 0:02:55.4]} 19. Qd3 {[%clk 0:02:20.7]} 19...
Qa3 {[%clk 0:02:48.6]} 20. Nd2 {[%clk 0:01:33.6]} 20... Nxd2 {[%clk 0:02:44.6]}
21. Bxd2 {[%clk 0:01:21.2]} 21... e6 {[%clk 0:02:43.2]} 22. Bxd5 {[%clk
0:01:07.4]} 22... cxd5 {[%clk 0:02:45.1]} 23. Bc1 {[%clk 0:00:24.6]} 23... Qe7
{[%clk 0:02:43]} 24. a4 {[%clk 0:00:21.1]} 24... Qf7 {[%clk 0:02:43.6]} 25. Ba3
{[%clk 0:00:21.5]} 25... Qf2+ {[%clk 0:02:44]} 26. Kh1 {[%clk 0:00:22.6]} 26...
Rf3 {[%clk 0:02:45.4]} 27. Qb5 {[%clk 0:00:20.4]} 27... Bf8 {[%clk 0:02:26.5]}
28. Qe8 {[%clk 0:00:17.5]} 28... Kg7 {[%clk 0:01:57.3]} 29. Bxf8+ {[%clk
0:00:15.8]} 29... Rxf8 {[%clk 0:01:59.2]} 30. Qe7+ {[%clk 0:00:15.6]} 30... Rf7
{[%clk 0:01:59.6]} 31. Qxe6 {[%clk 0:00:16.5]} 31... Qf3+ {[%clk 0:02:00.6]} 32.
Kg1 {[%clk 0:00:15.7]} 32... Qxc3 {[%clk 0:02:01.3]} 33. Rd1 {[%clk 0:00:10.4]}
33... Qe3+ {[%clk 0:02:00.5]} 34. Kg2 {[%clk 0:00:09.1]} 34... Qe2+ {[%clk
0:02:01.4]} 35. Kh3 {[%clk 0:00:11]} 35... Qh5+ {[%clk 0:02:02.7]} 36. Kg2
{[%clk 0:00:11.2]} 36... Qxd1 {[%clk 0:02:04.6]} 0-1

[Event "*** Titled Tuesday Blitz"]
[Site "Chess.com"]
[Date "2018.07.03"]
[Round "5"]
[White "Aklanion"]
[Black "ChessMavenYeti"]
[Result "0-1"]
[WhiteElo "2050"]
[BlackElo "2202"]
[TimeControl "180+2"]
[EndTime "14:02:07 PDT"]
[Termination "ChessMavenYeti won by resignation"]

1. e4 {[%clk 0:03:01.9]} 1... e6 {[%clk 0:03:00.8]} 2. d4 {[%clk 0:03:02.3]}
2... d5 {[%clk 0:03:02.2]} 3. Nd2 {[%clk 0:03:04.2]} 3... c5 {[%clk 0:03:02.3]}
4. exd5 {[%clk 0:03:03.9]} 4... Qxd5 {[%clk 0:03:03.4]} 5. Ngf3 {[%clk
0:03:05.8]} 5... Nf6 {[%clk 0:03:03.2]} 6. Bc4 {[%clk 0:03:06.5]} 6... Qd6
{[%clk 0:03:04.2]} 7. O-O {[%clk 0:03:07]} 7... cxd4 {[%clk 0:03:05.2]} 8. Nb3
{[%clk 0:03:07.9]} 8... Nc6 {[%clk 0:03:05.3]} 9. Nbxd4 {[%clk 0:03:08.8]} 9...
Nxd4 {[%clk 0:03:06.6]} 10. Nxd4 {[%clk 0:03:10.1]} 10... a6 {[%clk 0:03:07.1]}
11. c3 {[%clk 0:03:08.8]} 11... Qc7 {[%clk 0:03:01.6]} 12. Bd3 {[%clk 0:03:09]}
12... Bd6 {[%clk 0:02:59.9]} 13. g3 {[%clk 0:03:07.7]} 13... O-O {[%clk
0:02:51.8]} 14. Bg5 {[%clk 0:03:08]} 14... Nd5 {[%clk 0:02:52.3]} 15. Qc2 {[%clk
0:03:05.6]} 15... g6 {[%clk 0:02:42]} 16. a3 {[%clk 0:03:06.4]} 16... e5 {[%clk
0:02:41.5]} 17. Nb3 {[%clk 0:02:58.4]} 17... f5 {[%clk 0:02:34.1]} 18. Rad1
{[%clk 0:02:55.8]} 18... Nf6 {[%clk 0:02:22.5]} 19. c4 {[%clk 0:02:49.8]} 19...
b6 {[%clk 0:02:23.1]} 20. Rfe1 {[%clk 0:02:31]} 20... Bb7 {[%clk 0:02:23.1]} 21.
Bf1 {[%clk 0:02:18]} 21... Qc6 {[%clk 0:02:22.3]} 22. f3 {[%clk 0:02:11.2]}
22... Qxf3 {[%clk 0:02:12]} 23. Bg2 {[%clk 0:02:12.4]} 23... Qxg2+ {[%clk
0:02:08.9]} 24. Qxg2 {[%clk 0:02:14.3]} 24... Bxg2 {[%clk 0:02:09.5]} 25. Kxg2
{[%clk 0:02:16.2]} 25... Rad8 {[%clk 0:02:01.5]} 26. Rd3 {[%clk 0:02:08.9]}
26... e4 {[%clk 0:01:56.2]} 27. Rdd1 {[%clk 0:02:03.9]} 27... Be7 {[%clk
0:01:56.9]} 28. Nd4 {[%clk 0:02:03.8]} 28... Kf7 {[%clk 0:01:53.1]} 29. Nc6
{[%clk 0:02:03.5]} 29... Rxd1 {[%clk 0:01:53.8]} 30. Rxd1 {[%clk 0:02:05.4]}
30... Rc8 {[%clk 0:01:46.6]} 31. Nxe7 {[%clk 0:01:36.7]} 31... Kxe7 {[%clk
0:01:46.2]} 32. Bxf6+ {[%clk 0:01:37.7]} 32... Kxf6 {[%clk 0:01:47.3]} 33. Rd6+
{[%clk 0:01:39.3]} 33... Ke5 {[%clk 0:01:45]} 34. Rxb6 {[%clk 0:01:40.5]} 34...
Rxc4 {[%clk 0:01:46.1]} 35. Rxa6 {[%clk 0:01:42]} 35... Rc2+ {[%clk 0:01:46.9]}
36. Kg1 {[%clk 0:01:43.6]} 36... Rxb2 {[%clk 0:01:47.8]} 37. a4 {[%clk
0:01:44.1]} 37... e3 {[%clk 0:01:46.5]} 38. Ra8 {[%clk 0:01:45.6]} 38... Kd4
{[%clk 0:01:41.6]} 39. a5 {[%clk 0:01:44.2]} 39... Ke4 {[%clk 0:01:36.9]} 40.
Re8+ {[%clk 0:00:48.7]} 40... Kf3 {[%clk 0:01:37.7]} 41. h3 {[%clk 0:00:50.2]}
41... Rb1+ {[%clk 0:01:31.4]} 42. Kh2 {[%clk 0:00:51.5]} 42... e2 {[%clk
0:01:32.7]} 43. a6 {[%clk 0:00:51.6]} 43... e1=Q {[%clk 0:01:32.7]} 44. Rxe1
{[%clk 0:00:53.1]} 44... Rxe1 {[%clk 0:01:33.6]} 45. a7 {[%clk 0:00:55]} 0-1

[Event "*** Titled Tuesday Blitz"]
[Site "Chess.com"]
[Date "2018.07.03"]
[Round "5"]
[White "Aleksey_Sorokin"]
[Black "penguingm1"]
[Result "0-1"]
[WhiteElo "2768"]
[BlackElo "2773"]
[TimeControl "180+2"]
[EndTime "14:02:35 PDT"]
[Termination "penguingm1 won by resignation"]

1. d4 {[%clk 0:03:01.9]} 1... d5 {[%clk 0:03:00.8]} 2. c4 {[%clk 0:03:02.8]}
2... e6 {[%clk 0:03:01.8]} 3. Nf3 {[%clk 0:03:03.8]} 3... Nf6 {[%clk 0:03:02.6]}
4. g3 {[%clk 0:03:05]} 4... Be7 {[%clk 0:03:02.7]} 5. Bg2 {[%clk 0:03:05.9]}
5... O-O {[%clk 0:03:02.1]} 6. O-O {[%clk 0:03:07.8]} 6... dxc4 {[%clk
0:03:03.5]} 7. Ne5 {[%clk 0:03:06.2]} 7... Nc6 {[%clk 0:03:04.7]} 8. Bxc6 {[%clk
0:03:06.2]} 8... bxc6 {[%clk 0:03:06]} 9. Nxc6 {[%clk 0:03:08.1]} 9... Qe8
{[%clk 0:03:07.4]} 10. Nxe7+ {[%clk 0:03:09.1]} 10... Qxe7 {[%clk 0:03:09.3]}
11. Qa4 {[%clk 0:03:07.8]} 11... e5 {[%clk 0:03:10.4]} 12. dxe5 {[%clk
0:03:07.6]} 12... Qxe5 {[%clk 0:03:12.3]} 13. Qxc4 {[%clk 0:03:06.6]} 13... Be6
{[%clk 0:03:13.6]} 14. Qh4 {[%clk 0:03:05.3]} 14... Qxe2 {[%clk 0:02:35.7]} 15.
Nc3 {[%clk 0:03:05.8]} 15... Qc4 {[%clk 0:02:34.9]} 16. Qxc4 {[%clk 0:03:00.8]}
16... Bxc4 {[%clk 0:02:36.8]} 17. Re1 {[%clk 0:03:01.2]} 17... Nd5 {[%clk
0:02:36]} 18. Ne4 {[%clk 0:02:56.8]} 18... Nb4 {[%clk 0:02:14.5]} 19. Bf4 {[%clk
0:02:44.1]} 19... Nc2 {[%clk 0:02:05.9]} 20. Rec1 {[%clk 0:02:44.9]} 20... Bd3
{[%clk 0:01:43.3]} 21. Nc5 {[%clk 0:02:28.8]} 21... Bg6 {[%clk 0:01:37.8]} 22.
Nd7 {[%clk 0:02:14.8]} 22... Rfd8 {[%clk 0:01:30.6]} 23. Ne5 {[%clk 0:02:15.5]}
23... Nxa1 {[%clk 0:01:30.2]} 24. Rxa1 {[%clk 0:02:16.2]} 24... Be4 {[%clk
0:01:29.3]} 25. f3 {[%clk 0:02:09.6]} 25... Bd5 {[%clk 0:01:29.2]} 26. Kf2
{[%clk 0:02:09.3]} 26... f6 {[%clk 0:01:24.3]} 27. Ng4 {[%clk 0:02:10.2]} 27...
Be6 {[%clk 0:01:24.4]} 28. Rc1 {[%clk 0:02:06.4]} 28... Rd7 {[%clk 0:01:25.1]}
29. a3 {[%clk 0:01:56.2]} 29... h5 {[%clk 0:00:58.6]} 30. Ne3 {[%clk 0:01:56.6]}
30... Rd2+ {[%clk 0:00:59.3]} 31. Kg1 {[%clk 0:01:57.1]} 31... Rxb2 {[%clk
0:01:00.2]} 32. Rxc7 {[%clk 0:01:55.7]} 32... a5 {[%clk 0:00:55.8]} 33. Re7
{[%clk 0:01:49.9]} 33... Bh3 {[%clk 0:00:56.5]} 34. g4 {[%clk 0:01:48.7]} 34...
hxg4 {[%clk 0:00:20.1]} 35. fxg4 {[%clk 0:01:45.8]} 35... Rd8 {[%clk 0:00:21.1]}
36. Bg3 {[%clk 0:01:27.1]} 36... Rdd2 {[%clk 0:00:16.1]} 37. Be1 {[%clk
0:01:27]} 37... Re2 {[%clk 0:00:14.3]} 38. Nf5 {[%clk 0:01:23.6]} 38... Rg2+
{[%clk 0:00:10.5]} 0-1

[Event "*** Titled Tuesday Blitz"]
[Site "Chess.com"]
[Date "2018.07.03"]
[Round "5"]
[White "cool4chess"]
[Black "LuisFSiles"]
[Result "0-1"]
[WhiteElo "2033"]
[BlackElo "2226"]
[TimeControl "180+2"]
[EndTime "14:02:37 PDT"]
[Termination "LuisFSiles won on time"]

1. e4 {[%clk 0:03:01.9]} 1... e5 {[%clk 0:02:56.8]} 2. Nf3 {[%clk 0:03:02.3]}
2... Nc6 {[%clk 0:02:57.1]} 3. Bb5 {[%clk 0:03:03.5]} 3... Nf6 {[%clk
0:02:54.5]} 4. O-O {[%clk 0:03:03.6]} 4... Nxe4 {[%clk 0:02:55]} 5. d4 {[%clk
0:03:04.5]} 5... Nd6 {[%clk 0:02:54.1]} 6. Bg5 {[%clk 0:03:05.3]} 6... Be7
{[%clk 0:02:52.2]} 7. Bxc6 {[%clk 0:03:02.7]} 7... Bxg5 {[%clk 0:02:37.5]} 8.
dxe5 {[%clk 0:02:56.2]} 8... Nc4 {[%clk 0:02:00.2]} 9. Bd5 {[%clk 0:02:52.9]}
9... Nb6 {[%clk 0:01:58.6]} 10. Bb3 {[%clk 0:02:30.7]} 10... O-O {[%clk
0:01:53.2]} 11. Nxg5 {[%clk 0:02:28.7]} 11... Qxg5 {[%clk 0:01:53.1]} 12. f4
{[%clk 0:02:30.3]} 12... Qf5 {[%clk 0:01:41.5]} 13. Nd2 {[%clk 0:02:27.5]} 13...
d6 {[%clk 0:01:36.9]} 14. exd6 {[%clk 0:02:29.4]} 14... Qc5+ {[%clk 0:01:36.3]}
15. Kh1 {[%clk 0:02:27.7]} 15... Qxd6 {[%clk 0:01:37.4]} 16. Ne4 {[%clk
0:02:29.3]} 16... Qxd1 {[%clk 0:01:36.4]} 17. Raxd1 {[%clk 0:02:31.2]} 17... a5
{[%clk 0:01:25.5]} 18. Ng5 {[%clk 0:02:12.1]} 18... Bg4 {[%clk 0:01:07.1]} 19.
Rd4 {[%clk 0:01:59]} 19... a4 {[%clk 0:01:04.5]} 20. Bxf7+ {[%clk 0:01:44.4]}
20... Rxf7 {[%clk 0:01:02]} 21. Nxf7 {[%clk 0:01:46.3]} 21... Kxf7 {[%clk
0:01:02.1]} 22. f5 {[%clk 0:01:42.6]} 22... Be2 {[%clk 0:00:51.9]} 23. Re1
{[%clk 0:01:43.6]} 23... Re8 {[%clk 0:00:27.2]} 24. b3 {[%clk 0:01:17.4]} 24...
Bb5 {[%clk 0:00:27.7]} 25. Rxe8 {[%clk 0:01:13]} 25... Bxe8 {[%clk 0:00:29.6]}
0-1